Cogmind - Beta 11.1 @@@ ROGUE MODE // 2022.06.05 @ 21:05:46 Player: darki Result: Destroyed by 8R-AWN with 8R-AWN's Boregun Performance ------------- Evolutions (0) 0 Regions Visited (3) 600 Robots Destroyed (2) 10 Value Destroyed (50) 50 Prototype IDs (23) 460 Alien Tech Used (0) 0 Bonus (300) 300 TOTAL SCORE: 1420 Bonus ------- Aligned with FarCom 300 Cogmind --------- Core Integrity 0/250 Matter 123/300 Energy 100/100 System Corruption 0% Temperature Hot (294) Movement Walking (190) Ox1 Location -10/Exiles Parts ------- > --- POWER (1) -------- (None) > --- PROPULSION (2) --- Aluminum Leg > --- UTILITY (2) ------ Small Storage Unit Sensor Array > --- WEAPON (2) ------- Minigun Assault Cannon > --- INVENTORY (8) ---- Structural Scanner Signal Interpreter Improved Terrain Scanner Actuator Array Guided Plasma Cannon Improved Grenade Launcher Mining Laser Peak State ------------ > --- POWER ------------ Light Nuclear Core > --- PROPULSION ------- Aluminum Leg Aluminum Leg > --- UTILITY ---------- Small Storage Unit Sensor Array > --- WEAPON ----------- Guided Plasma Cannon Minigun > --- INVENTORY -------- Compact Battery Structural Scanner Signal Interpreter Improved Terrain Scanner Actuator Array Assault Cannon Improved Grenade Launcher Mining Laser [Rating: 19] Favorites ----------- Power Light Nuclear Core Engine Light Ion Engine Power Core Light Nuclear Core Propulsion Aluminum Leg Leg Aluminum Leg Utility Small Storage Unit Device Sensor Array Storage Small Storage Unit Weapon Assault Rifle Energy Gun EM Pulse Gun Energy Cannon Guided Plasma Cannon Ballistic Gun Assault Rifle Ballistic Cannon Assault Cannon Launcher Improved Grenade Launcher Build | -11 -10 -10 -10 ------- Run | Scr Mat Min Exi Slots Evolved . | . . . . Power . | . . . . Propulsion . | . . . . Utility . | . . . . Weapon . | . . . . Parts Attached 15 | . 4 5 6 Power 1 | . . 1 . Engine . | . . . . Core 1 | . . 1 . Reactor . | . . . . Propulsion 3 | . 2 1 . Treads . | . . . . Leg 3 | . 2 1 . Wheel . | . . . . Hover . | . . . . Flight . | . . . . Utility 1 | . 1 . . Device 1 | . 1 . . Storage . | . . . . Processor . | . . . . Hackware . | . . . . Protection . | . . . . Artifact . | . . . . Weapon 10 | . 1 3 6 Energy Gun 1 | . 1 . . Energy Cannon 2 | . . . 2 Ballistic Gun 3 | . . 2 1 Ballistic Cannon 3 | . . 1 2 Launcher 1 | . . . 1 Special Weapon . | . . . . Impact Weapon . | . . . . Slashing Weapon . | . . . . Piercing Weapon . | . . . . Special Melee Weapon . | . . . . Unidentified Prototypes . | . . . . Parts Lost 4 | . . 2 2 Power 2 | . . 1 1 Propulsion 1 | . . . 1 Utility . | . . . . Weapon 1 | . . 1 . Highest Loss Streak 2 | . . 2 2 To Critical Strikes 1 | . . . 1 Average Slot Usage (%) 95 | . 91 99 94 Engine 4 | . 14 1 . Core 8 | . . 11 12 Leg 27 | . 27 28 26 Device 11 | . 6 14 14 Storage 14 | . 14 14 14 Energy Gun 4 | . 13 1 . Energy Cannon 1 | . . . 3 Ballistic Gun 16 | . 14 21 11 Ballistic Cannon 4 | . . 5 8 Naked Turns . | . . . . Heaviest Build 24 | 12 13 19 24 Greatest Support 20 | 20 20 20 20 Greatest Overweight (x) 2 | . 1 . 2 Average Overweight (x) . | . . . . Largest Inventory Capacity 8 | 8 8 8 8 Average Capacity 8 | 8 8 8 8 Most Carried 8 | 6 8 8 8 Average Carried 7 | 6 6 7 7 Final Capacity 8 | 8 8 8 8 Final Carried 8 | 6 8 8 7 Class Distribution -------------------- 100% | Mutant Dominant Class ---------------- Mutant | -10/Materials Mutant | -10/Mines Mutant | -10/Exiles Resources | -11 -10 -10 -10 ----------- Run | Scr Mat Min Exi Matter Collected 374 | 200 11 163 . Remotely . | . . . . Salvage Created 109 | . 12 80 17 Parts 4 | . 2 2 . Haulers Intercepted . | . . . . Recyclers Shooed . | . . . . Parts Field Recycled . | . . . . Retrieved Matter . | . . . . Parts Self-Destructed . | . . . . Prevented . | . . . . Kills | -11 -10 -10 -10 ------- Run | Scr Mat Min Exi Combat Hostiles Destroyed 13 | . . 6 7 Guns 6 | . . 6 . AOE 7 | . . . 7 Classes Destroyed 3 | . 1 2 . Operator 1 | . 1 . . Grunt 1 | . . 1 . Assembled 12 | . . 5 7 Best Kill Streak 7 | . 1 3 7 Combat Bots Only 7 | . . 3 7 Max Kills in Single Turn 2 | . 1 1 2 Gunslinging . | . . . . Exploded 2 | . . . 2 Melee . | . . . . Uniques/NPCs Destroyed . | . . . . Combat | -11 -10 -10 -10 -------- Run | Scr Mat Min Exi Damage Taken 891 | . . 369 522 Core 264 | . . 82 182 Absorbed by Shields . | . . . . Core Remaining (%) 100 | 100 . . . Volleys Fired 43 | . 2 19 22 Largest 2 | . 2 2 2 Hottest 120 | . 60 69 120 Shots Fired 67 | . 4 38 25 Gun 40 | . 4 33 3 Cannon 22 | . . 5 17 Launcher 5 | . . . 5 Special . | . . . . Kinetic 48 | . 2 33 13 Thermal 7 | . . . 7 Explosive 5 | . . . 5 Electromagnetic 7 | . 2 5 . Robot Hit Streak 8 | . 1 3 8 Robot Miss Streak 5 | . 1 3 5 Penetration Max . | . . . . Secondary Targets . | . . . . Shots Hit Robots 33 | . 1 17 15 Core Hits 23 | . 1 9 13 Critical Kills . | . . . . Critical Parts Destroyed . | . . . . Critical Strikes . | . . . . Melee Attacks . | . . . . Impact . | . . . . Slashing . | . . . . Piercing . | . . . . Sneak Attacks . | . . . . Combat Hostiles . | . . . . Follow-up Attacks . | . . . . Damage Inflicted 974 | . 33 238 703 Guns 219 | . 15 188 16 Cannons 165 | . . 50 115 Explosions 572 | . . . 572 Melee . | . . . . Ramming 18 | . 18 . . Kinetic 340 | . 15 217 108 Thermal 23 | . . . 23 Explosive 572 | . . . 572 Electromagnetic 21 | . . 21 . Impact . | . . . . Slashing . | . . . . Piercing . | . . . . Highest Corruption . | . . . . Average Corruption . | . . . . Corruption Purged . | . . . . Corruption Blocked . | . . . . Overload Shots . | . . . . Overflow Damage 31 | . . 5 26 Projectiles 6 | . . 5 1 Explosions 25 | . . . 25 Melee . | . . . . Knockbacks 2 | . . 1 1 Impact . | . . . . Kinetic 2 | . . 1 1 Secondary . | . . . . Self-Inflicted Damage 18 | . . . 18 Shots 1 | . . . 1 Rammed . | . . . . Targets Rammed 3 | . 3 . . Kicked 3 | . 3 . . Crushed . | . . . . Highest Temperature 525 | . . 106 525 Average Temperature 153 | . . 41 249 Received Heat Transfer 87 | . . 87 . Effects 3 | . . . 3 Interference 1 | . . . 1 Short Circuit 2 | . . . 2 Siege Activations . | . . . . Robots Corrupted . | . . . . Combat Hostiles . | . . . . Parts Fried . | . . . . Impact Corruptions . | . . . . Robots Melted . | . . . . Combat Hostiles . | . . . . Parts Melted . | . . . . Heat Transferred 140 | . . . 140 Parts Sabotaged . | . . . . Parts Stolen . | . . . . Parts Stripped . | . . . . Power Chain Reactions . | . . . . Missiles Intercepted . | . . . . Alert | -11 -10 -10 -10 ------- Run | Scr Mat Min Exi Peak Influence 58 | . 58 38 . Initial 22 | . . 22 . Average 20 | . 38 7 . Maximum Alert Level . | . . . . Low Security (%) 100 | 100 100 100 . Level 1 . | . . . . Level 2 . | . . . . Level 3 . | . . . . Level 4 . | . . . . Level 5 . | . . . . High Security . | . . . . Max Security . | . . . . Squads Dispatched 2 | . 1 1 . Investigation 1 | . . 1 . Extermination . | . . . . Reinforcement 1 | . 1 . . Assault . | . . . . Garrison . | . . . . Intercept . | . . . . Searches Triggered . | . . . . Construction Impeded . | . . . . Haulers Reinforced . | . . . . Active Scanning Responses . | . . . . Cargo Convoy Interrupts . | . . . . Stealth | -11 -10 -10 -10 --------- Run | Scr Mat Min Exi Distress Signals . | . . . . Communications Jammed . | . . . . Distress Signals . | . . . . Times Spotted 29 | . 4 18 7 Peak Tracking Total 9 | . 2 9 9 Tactical Retreats 2 | . . 2 . Traps | -11 -10 -10 -10 ------- Run | Scr Mat Min Exi Traps Triggered 1 | . 1 . . Indirectly . | . . . . Trap Hack Attempts . | . . . . Triggered . | . . . . Disarmed . | . . . . Reprogrammed . | . . . . Reused . | . . . . Traps Extracted . | . . . . Installed . | . . . . Triggered . | . . . . Machines | -11 -10 -10 -10 ---------- Run | Scr Mat Min Exi Machines Disabled 4 | . . . 4 Max in Single Turn 2 | . . . 2 Machines Sabotaged . | . . . . Garrisons Compromised . | . . . . Overloaded Fab Kills . | . . . . Hacking | -11 -10 -10 -10 --------- Run | Scr Mat Min Exi Machines Accessed 4 | . 2 1 1 Terminals 2 | . 2 . . Fabricators . | . . . . Repair Stations . | . . . . Recycling Units . | . . . . Scanalyzers . | . . . . Garrison Access . | . . . . Total Hacks 9 | . 7 1 1 Successful 3 | . 1 1 1 Failed 6 | . 6 . . Catastrophic 1 | . 1 . . Database Lockouts . | . . . . Manual 8 | . 7 . 1 Terminals 7 | . 7 . . Fabricators . | . . . . Repair Stations . | . . . . Recycling Units . | . . . . Scanalyzers . | . . . . Garrison Access . | . . . . Terminal Hacks 3 | . 1 1 1 Open Door 1 | . . 1 . Branch Access Points 1 | . 1 . . EX-Prototype ID Bank 1 | . . . 1 Fabricator Hacks . | . . . . Repair Station Hacks . | . . . . Recycling Unit Hacks . | . . . . Scanalyzer . | . . . . Garrison Access Hacks . | . . . . Unauthorized Hacks . | . . . . Terminals . | . . . . Fabricators . | . . . . Repair Stations . | . . . . Recycling Units . | . . . . Scanalyzers . | . . . . Garrison Access . | . . . . Data Cores Recovered . | . . . . Used . | . . . . Hacking Detections 1 | . 1 . . Full Trace Events . | . . . . Feedback Events . | . . . . Feedback Blocked . | . . . . Robot Schematics Acquired . | . . . . Robots Built . | . . . . Authchips . | . . . . Time . | . . . . Total Robot Build Rating . | . . . . Part Schematics Acquired . | . . . . Parts Built . | . . . . Authchips . | . . . . Time . | . . . . Total Part Build Rating . | . . . . Parts Repaired . | . . . . Time . | . . . . Parts Recycled . | . . . . Recycled Matter . | . . . . Retrieved Matter . | . . . . Retrieved Components . | . . . . Parts Scanalyzed . | . . . . Part Schematics Acquired . | . . . . Parts Damaged . | . . . . Bothacking | -11 -10 -10 -10 ------------ Run | Scr Mat Min Exi Used RIF Installer . | . . . . Robots Hacked . | . . . . Non-combat . | . . . . Combat . | . . . . Robot Hacks Applied . | . . . . Relay Couplers Released . | . . . . Fabnet Peak Effective % . | . . . . Robots Rewired . | . . . . Allies Hacked . | . . . . Hacks Repelled . | . . . . Allies | -11 -10 -10 -10 -------- Run | Scr Mat Min Exi Total Allies 3 | . . 3 . Largest Group 3 | . . 3 1 Highest-Rated Group 40 | . . 40 14 Highest-Rated Ally 16 | . . 16 14 Total Orders . | . . . . Ally Attacks 30 | . . 30 . Total Damage 323 | . . 323 . Kills 5 | . . 5 . Allies Corrupted . | . . . . Allies Melted . | . . . . Intel | -11 -10 -10 -10 ------- Run | Scr Mat Min Exi Robot Analysis Total . | . . . . Derelict Logs Recovered 1 | . . 1 . Drone Launches . | . . . . Drone Recoveries . | . . . . Exploration | -11 -10 -10 -10 ------------- Run | Scr Mat Min Exi Turns Passed 1106 | 3 314 461 328 Spaces Moved 742 | 3 232 306 201 Core . | . . . . Treads . | . . . . Legs 742 | 3 232 306 201 Wheels . | . . . . Hover . | . . . . Flight . | . . . . Fastest Speed 120 | 120 120 120 120 Average Speed 123 | 120 120 120 132 Slowest Speed 260 | 120 190 120 260 Overloaded Moves . | . . . . Propulsion Burnouts . | . . . . Robots Hopped . | . . . . Cave-ins Triggered . | . . . . Exploration Rate (%) 40 | 2 44 73 41 Regions Visited 3 Branch Regions 2 Pre-discovered Areas 1 | . . 1 . Known Exits Taken 1 | . 1 . . Unknown Exits Taken 2 | 1 . 1 . Scrap Searched 1 | . . 1 . Spaces Dug . | . . . . Terrain Destroyed 30 | . . 2 28 Melee . | . . . . Projectile 6 | . . 2 4 AOE 24 | . . . 24 Terrain Rammed . | . . . . Walls Destroyed . | . . . . Machines Disabled . | . . . . Actions | -11 -10 -10 -10 --------- Run | Scr Mat Min Exi Total 864 | 2 260 365 237 Wait 44 | . 14 25 5 Move 739 | 2 231 305 201 Hop . | . . . . Pick Up 9 | . 4 5 . Fast Attach 8 | . 4 3 1 Attach 1 | . . 1 . Detach 1 | . . . 1 Swap 6 | . . 1 5 Drop 10 | . 2 6 2 Fire 43 | . 2 19 22 Melee . | . . . . Ram . | . . . . Kick 3 | . 3 . . Crush . | . . . . Escape Stasis . | . . . . Rewire . | . . . . Trap . | . . . . Miscellaneous . | . . . . Route ------- -11/Scrapyard -10/Materials (discovered 2 exits: [*Mat] / *Min) -10/Mines (discovered 3 exits: [*Mat x2] / *Exi) -10/Exiles History --------- Turn | Location | Event 1 | -11/Scrapyard | Discovered new exit (range 0) 4 | -11/Scrapyard | Entered Materials 115 | -10/Materials | Discovered new exit (range 9) 131 | -10/Materials | Identified exit to Mines 318 | -10/Materials | Entered Mines 324 | -10/Mines | Assisted by bots powering up and referring to "LRC-V3" 327 | -10/Mines | Build established: Mutant 334 | -10/Mines | Assembled infested the area 562 | -10/Mines | Discovered new exit (range 5) 591 | -10/Mines | Met a Derelict shopkeep closing up shop 693 | -10/Mines | Learned location of Zion (-6) 729 | -10/Mines | Discovered new exit (range 16) 768 | -10/Mines | Deemed a non-threat by the Exiles lab entrance 768 | -10/Mines | Discovered new exit (range 5) 779 | -10/Mines | Entered Exiles 779 | -10/Exiles | Accompanied by 1 ally 808 | -10/Exiles | Met 8R-AWN 829 | -10/Exiles | Met EX-HEX 867 | -10/Exiles | Met EX-BIN 881 | -10/Exiles | Aligned with FarCom system 883 | -10/Exiles | Given EX-Vault access code 910 | -10/Exiles | Opened EX-Vault 945 | -10/Exiles | Warned to stay clear of 0b10 Research branches 977 | -10/Exiles | Found Gui. Plasma Cannon 1035 | -10/Exiles | Attacked by the Exiles 1082 | -10/Exiles | Core integrity fell below 50% 1089 | -10/Exiles | Destroyed 7 combat bots 1100 | -10/Exiles | Core integrity fell below 20% 1107 | -10/Exiles | Destroyed by 8R-AWN with 8R-AWN's Boregun Last Messages --------------- 01094_ HV Slug penetrates FarCom Aligner. 01096_ Penetrated by HV Slug. 01096_ HV Slug penetrates FarCom Aligner. 01096_ Penetrated by HV Slug. 01096_ HV Slug penetrates FarCom Aligner. 01099_ Penetrated by HV Slug. 01099_ HV Slug penetrates FarCom Aligner. 01099_ Penetrated by HV Slug. 01099_ HV Slug penetrates FarCom Aligner. 01101_ The unstable cave ceiling collapses. 01101_ Penetrated by HV Slug. 01101_ HV Slug penetrates FarCom Aligner. 01101_ Penetrated by HV Slug. 01101_ HV Slug penetrates FarCom Aligner. 01102_ Minigun broken. 01102_ Overheating: Short circuit. 01104_ HV Slug penetrates FarCom Aligner. 01104_ Penetrated by HV Slug. 01104_ HV Slug penetrates FarCom Aligner. 01107_ Penetrated by HV Slug. Map ----- +----------------------------------------------------+ | ???????????## #??????????????????????????????? | | ????????????# #??????????????????????????????? | | ????????????# #???####???????????????????????? | | ????????????# #??"""""#??????????????????????? | | ????????????# ## """#??????????????????????? | | ????????????# X""#??????????????????????? | | ????????????# ## """#??????????????????????? | | ??????####??# #??"""""#??????????????????????? | | ??????"""""?# #???####???????????????????????? | | ?????"""" ## #??????????????????????????????? | | ????#""X" #??????????????????????????????? | | ????#" #??????????????????????????????? | | ????#" ## #??????????????????????????????? | | ????#""""""?# #?#########????????????????????? | | ?????#"###??# #?#"""""""#????????????????????? | | ????????????# #?#"""""""#????????????????????? | | ????????????# #?#"""""""#????????????????????? | | ???????????## ###" """"#????????????????????? | | ???????????#" "" "#????????????????????? | | ???????????#" ""#????????????????????? | | ???????????#" "#????????????????????? | | ???????????#" ""#????????????????????? | | ???????????#" ""#???""???????????????? | | ???????????#" ""## """???????????????? | | ???????????# "" ???????????????? | | ???????????# % @ "####?????????????????? | | ???????????# """" #???????????????? | | ???????????# # """#???????????????? | | ??????????? g """"#?""?????????????????? | | ???????????;# % #######????????????????????? | | ??????????##" #??????????????????????????? | | ????????###"" # ???????????????????????????? | | ????????""""" ???????????????????????????? | | ??????"" " "" ??##########???????????????? | | ?????""" " #####"""""""""##?????????????? | | ????? " " """ """"##????????????? | | ??? "" " #????????????? | | ??? " """#????????????? | | ??? " "#???????????## | | ??? " "##?????????##" | | ???? ""###???????#" | | ???? """""" """#??????##" | | ????? ######""" "#????### | | ????? ""#?????#####""" ##???# | | ??????????????????##""" ##?## | | ???????????????????#"""" ### | | ???????????????????#"" # | | ???????????????????"""" ## | | ?????????????????"" ""#? | | ????????????????" #"""##? | +----------------------------------------------------+ Best States ------------- Heat Dissipation 25 Energy Generation 14 Energy Capacity 160 Matter Stores 300 Matter Capacity 300 Sight Range 16 Robot Scan Range 14 Terrain Scan Density 10 Evasion (%) 55 Item Schematics ----------------- None Robot Schematics ------------------ None Fabricated ------------ Nothing Alien Tech Used ----------------- None Achievements -------------- None Challenges ------------ None Game ------ Seed DamperLayeredDatajack Manual? 0 Play Time 00:14:03 Cumulative 94.9 hours Start 2022.06.05 @ 20:51:09 End 2022.06.05 @ 21:05:46 Sessions 1 Manual Loads 0 Difficulty Rogue Special Mode None Game No. 106 Rogue 106 Adventurer 0 Explorer 0 Win Type - Total 0 Types 0/0/0/0/0/0/0/0/0 Lore% 48 Gallery% 61 Achievement% 45 Wizard Run 0 Options --------- ASCII 0 Keyboard 0 Movement Mouse Keybinds 0 Fullscreen 1 Font 18/SmallcapsGlow Map View 76x50 Tactical HUD 1 Map Filters NONE Filters NONE Steam 1 RUN: e4d28f02-e0c9-4d9a-ae06-c5f8bcf7ecb0